[Event "8th Amsterdam Summer Open-A 2018"]
[Site "Amsterdam"]
[Date "2018.07.14"]
[Round "8"]
[White "Kohler, Aran"]
[Black "Cornelisse, John"]
[Result "0-1"]
[ECO "A40"]
[WhiteElo "2175"]
[BlackElo "2132"]
[Annotator "NA"]
[PlyCount "94"]
[EventDate "2018.07.07"]
[EventType "swiss"]
[EventCountry "NED"]
[SourceTitle "playchess.com"]
[Source "ChessBase"]
[SourceQuality "1"]
[TimeControl "40/5400+30:1800+30"]

1. d4 {[%emt 0:00:00]} g6 {[%emt 0:00:00]} 2. c3 {[%emt 0:00:00]} Bg7 {[%emt 0:00:00]} 3. Bg5 {[%emt 0:00:00]} d6 {[%emt 0:00:41] A40: Unusual replies to 1 d4} 4. Nd2 {[%emt 0:00:00]} Nd7 {[%emt 0:00:22]} 5. e3 {[%emt 0:00:06]} Ngf6 {[%emt 0:01:02]} 6. Bd3 {[%emt 0:00:07]} c6 {[%emt 0:00:37]} 7. h4 $146 {[%emt 0:00:20]} ({Predecessor:} 7. Bh4 Qc7 8. Ne2 O-O 9. Ne4 Nxe4 10. Bxe4 e5 11. Bc2 h6 12. f4 {0-1 (43) Chernin,A (2600)-Kovalev,A (2580) Tilburg 1992}) 7... h6 {[%emt 0:06:53]} 8. Bxf6 {[%emt 0:01:25]} Nxf6 {[%emt 0:00:35]} 9. Qc2 {[%emt 0:01:09]} e5 {[%emt 0:08:28]} (9... O-O $15) 10. dxe5 {[%emt 0:00:09]} dxe5 {[%emt 0:00:06]} 11. h5 {[%emt 0:03:05]} gxh5 {[%emt 0:07:18]} 12. O-O-O {[%emt 0:00:26]} Qe7 {[%emt 0:04:20]} 13. f3 {[%emt 0:02:20]} Nd5 {[%emt 0:02:41]} 14. Nf1 {[%emt 0:05:24]} h4 {[%emt 0:01:33]} 15. Qf2 {[%emt 0:01:52]} Bf6 {[%emt 0:03:04]} 16. Ne2 {[%emt 0:02:56]} Qc5 {[%emt 0:03:21]} 17. Rxh4 {[%emt 0:01:03]} Bxh4 {[%emt 0:01:38]} 18. Qxh4 {[%emt 0:00:06]} Qe7 {[%emt 0:00:19]} ({Nicht} 18... Nxe3 19. Qf2 $16) 19. Qf2 {[%emt 0:02:17]} Be6 {[%emt 0:01:04]} 20. f4 {[%emt 0:00:45]} Nb6 {[%emt 0:06:54]} 21. Bb1 {[%emt 0:03:08]} Rd8 {[%emt 0:02:47]} 22. Rxd8+ $19 {[%emt 0:00:50]} Kxd8 {[%emt 0:01:31]} 23. fxe5 {[%emt 0:01:13]} Bc4 {[%emt 0:06:20]} 24. Nd4 {[%emt 0:02:42]} Qxe5 {[%emt 0:02:22]} 25. Nd2 {[%emt 0:00:48]} Re8 {[%emt 0:07:44]} 26. b3 {[%emt 0:03:59]} Be6 {[%emt 0:09:17]} 27. N2f3 {[%emt 0:03:54]} Qf6 {[%emt 0:00:44]} 28. Qg3 {[%emt 0:00:23]} Kc8 {[%emt 0:03:02]} 29. Kb2 {[%emt 0:00:22]} Bd7 {[%emt 0:01:52]} 30. e4 {[%emt 0:00:14]} Qg6 {[%emt 0:04:00]} 31. Qh2 {[%emt 0:00:28]} Rg8 {[%emt 0:00:42]} 32. Bc2 {[%emt 0:00:18]} Qxg2 {[%emt 0:00:56]} 33. Qxh6 {[%emt 0:00:11]} c5 {[%emt 0:00:27]} 34. Nf5 {[%emt 0:04:04]} Bxf5 {[%emt 0:00:27]} 35. Nh4 {[%emt 0:00:04]} Qg5 {[%emt 0:01:42]} 36. Nxf5 {[%emt 0:00:32]} Qxh6 {[%emt 0:00:05]} 37. Nxh6 {[%emt 0:00:03]} Rf8 {[%emt 0:00:03]} 38. e5 {[%emt 0:00:27]} Kc7 {[%emt 0:01:48]} 39. c4 {[%emt 0:02:05]} Nd7 {[%emt 0:00:41]} 40. Nxf7 {[%emt 0:00:10]} Rxf7 {[%emt 0:00:42]} 41. e6 {[%emt 0:30:05]} Rf2 {[%emt 0:30:34]} 42. exd7 {[%emt 0:00:11]} Kxd7 {[%emt 0:00:03]} 43. a3 {[%emt 0:00:36]} Kd6 {[%emt 0:06:02]} 44. Kc3 {[%emt 0:00:23]} Ke5 {[%emt 0:00:54]} 45. Bd1 {[%emt 0:01:17]} Rg2 {[%emt 0:00:52]} 46. Bc2 {[%emt 0:03:44]} Rg3+ {[%emt 0:00:20]} 47. Bd3 {[%emt 0:00:07]} a5 {[%emt 0:00:15]} 0-1

[Event "8th Amsterdam Summer Open-A 2018"]
[Site "Amsterdam"]
[Date "2018.07.14"]
[Round "8"]
[White "Mesman, Edwyn"]
[Black "Grooten, Herman"]
[Result "1/2-1/2"]
[ECO "E38"]
[WhiteElo "2100"]
[BlackElo "2384"]
[Annotator "NA"]
[PlyCount "114"]
[EventDate "2018.07.07"]
[EventType "swiss"]
[EventCountry "NED"]
[SourceTitle "playchess.com"]
[Source "ChessBase"]
[SourceQuality "1"]
[TimeControl "40/5400+30:1800+30"]

1. d4 {[%emt 0:00:07]} Nf6 {[%emt 0:00:00]} 2. c4 {[%emt 0:00:10]} e6 {[%emt 0:00:00]} 3. Nc3 {[%emt 0:00:15]} Bb4 {[%emt 0:00:00]} 4. Qc2 {[%emt 0:00:19]} c5 {[%emt 0:00:14]} 5. dxc5 {[%emt 0:00:07]} Bxc5 {[%emt 0:00:28]} 6. Nf3 {[%emt 0:01:05]} Qb6 {[%emt 0:00:18]} 7. e3 {[%emt 0:00:07]} Qc7 {[%emt 0:00:09]} 8. g4 {[%emt 0:06:26]} h6 {[%emt 0:00:44]} 9. Rg1 {[%emt 0:01:54]} b6 {[%emt 0:00:43]} 10. Be2 {[%emt 0:03:17]} Bb7 {[%emt 0:00:20]} 11. Bd2 {[%emt 0:03:45]} a6 {[%emt 0:00:54]} 12. h4 {[%emt 0:04:19]} h5 {[%emt 0:02:03]} 13. g5 {[%emt 0:00:39]} Ng4 {[%emt 0:00:15]} 14. Rc1 {[%emt 0:10:06]} Be7 {[%emt 0:03:33]} 15. a3 {[%emt 0:02:41]} d6 {[%emt 0:04:43]} 16. Nd4 {[%emt 0:18:57]} Qd7 {[%emt 0:07:17]} 17. Ne4 {[%emt 0:05:55]} Nc6 {[%emt 0:01:54]} 18. Nxc6 {[%emt 0:01:50]} Bxc6 {[%emt 0:00:47]} 19. Bc3 {[%emt 0:01:28]} Qb7 {[%emt 0:05:58]} 20. Ng3 {[%emt 0:02:43]} e5 {[%emt 0:04:58]} 21. g6 {[%emt 0:10:50]} Bxh4 {[%emt 0:02:56]} 22. Qf5 {[%emt 0:04:44]} fxg6 {[%emt 0:05:01]} 23. Qe6+ {[%emt 0:01:38]} Qe7 {[%emt 0:00:31]} 24. Bxg4 {[%emt 0:00:33]} hxg4 {[%emt 0:00:34]} 25. Qxg6+ {[%emt 0:00:15]} Kf8 {[%emt 0:26:53]} 26. Nf5 {[%emt 0:02:22]} Qf6 {[%emt 0:00:33]} 27. Qxg4 {[%emt 0:00:18]} Bd7 {[%emt 0:03:29]} 28. e4 {[%emt 0:01:38]} Bxf5 {[%emt 0:04:42]} 29. exf5 {[%emt 0:00:14]} Kg8 {[%emt 0:01:45]} 30. Rd1 {[%emt 0:01:34]} Rd8 {[%emt 0:01:47]} 31. Rd5 {[%emt 0:02:16]} Rh7 {[%emt 0:01:16]} 32. Rg2 {[%emt 0:04:03]} Qh6 {[%emt 0:04:05]} 33. Qg6 {[%emt 0:05:07]} Be7 {[%emt 0:05:32]} 34. Bd2 {[%emt 0:00:55]} Qh1+ {[%emt 0:04:08]} 35. Ke2 {[%emt 0:00:45]} Kh8 {[%emt 0:02:03]} 36. Rd3 {[%emt 0:01:49]} Qh5+ {[%emt 0:04:06]} 37. Ke1 {[%emt 0:00:05]} Rf8 {[%emt 0:00:16]} 38. Qxh5 {[%emt 0:02:04]} Rxh5 {[%emt 0:00:01]} 39. Rdg3 {[%emt 0:00:17]} Rhxf5 {[%emt 0:01:49]} 40. Rxg7 {[%emt 0:01:20]} Rxf2 {[%emt 0:00:57]} 41. Rg8+ {[%emt 0:12:51]} Rxg8 {[%emt 0:00:32]} 42. Rxg8+ {[%emt 0:00:10]} Kxg8 {[%emt 0:00:06]} 43. Kxf2 {[%emt 0:00:04]} b5 {[%emt 0:07:46]} 44. b3 {[%emt 0:01:44]} bxc4 {[%emt 0:02:21]} 45. bxc4 {[%emt 0:00:07]} d5 {[%emt 0:02:39]} 46. cxd5 {[%emt 0:00:52]} Bxa3 {[%emt 0:00:06]} 47. Bc3 {[%emt 0:05:07]} Bd6 {[%emt 0:00:52]} 48. Kf3 {[%emt 0:00:20]} Kf7 {[%emt 0:00:42]} 49. Ke4 {[%emt 0:00:10]} Kf6 {[%emt 0:00:13]} 50. Ba5 {[%emt 0:00:41]} Bb8 {[%emt 0:01:07]} 51. Bd8+ {[%emt 0:00:27]} Kg6 {[%emt 0:04:38]} 52. Ba5 {[%emt 0:00:48]} Bd6 {[%emt 0:00:22]} 53. Bc3 {[%emt 0:00:48]} Kf6 {[%emt 0:00:24]} 54. Ba5 {[%emt 0:00:45]} Bb8 {[%emt 0:00:34]} 55. Bd8+ {[%emt 0:00:13]} Kf7 {[%emt 0:00:27]} 56. Ba5 {[%emt 0:00:23]} Ke7 {[%emt 0:04:57]} 57. Bc3 {[%emt 0:01:08]} Bd6 {[%emt 0:01:38]} 1/2-1/2

[Event "8th Amsterdam Summer Open-A 2018"]
[Site "Amsterdam"]
[Date "2018.07.14"]
[Round "8"]
[White "Kossen, Johannes"]
[Black "Elgersma, Simon"]
[Result "1/2-1/2"]
[ECO "E60"]
[WhiteElo "2095"]
[BlackElo "2263"]
[Annotator "NA"]
[PlyCount "60"]
[EventDate "2018.07.07"]
[EventType "swiss"]
[EventCountry "NED"]
[SourceTitle "playchess.com"]
[Source "ChessBase"]
[SourceQuality "1"]
[TimeControl "40/5400+30:1800+30"]

1. d4 Nf6 {[%emt 0:00:10]} 2. c4 {[%emt 0:00:28]} g6 {[%emt 0:00:00]} 3. Nf3 {[%emt 0:00:19]} Bg7 {[%emt 0:00:11]} 4. g3 {[%emt 0:00:10]} d6 {[%emt 0:00:04]} 5. Bg2 {[%emt 0:00:07]} O-O {[%emt 0:00:04]} 6. O-O {[%emt 0:00:08]} Bf5 {[%emt 0:00:03]} 7. Nh4 {[%emt 0:04:54]} Be4 {[%emt 0:00:09]} 8. f3 {[%emt 0:01:45]} Bc6 {[%emt 0:00:10]} 9. Nc3 {[%emt 0:02:01]} e5 {[%emt 0:04:16]} 10. d5 {[%emt 0:04:45]} Bd7 {[%emt 0:01:09]} 11. e4 {[%emt 0:00:43]} Nh5 {[%emt 0:09:49]} 12. Bd2 {[%emt 0:10:40]} a5 {[%emt 0:08:07]} 13. Qc2 {[%emt 0:13:35]} Na6 {[%emt 0:04:01]} 14. Be3 $11 {[%emt 0:09:36]} f5 {[%emt 0:11:54]} 15. Bh3 {[%emt 0:04:40]} Nf4 {[%emt 0:08:47]} 16. Bxf4 {[%emt 0:01:10]} exf4 {[%emt 0:01:10]} 17. exf5 {[%emt 0:02:32]} Bd4+ {[%emt 0:05:19]} 18. Kh1 {[%emt 0:00:35]} fxg3 {[%emt 0:03:09]} 19. hxg3 {[%emt 0:00:36]} g5 {[%emt 0:00:40]} 20. Ng2 {[%emt 0:00:35]} Qf6 {[%emt 0:01:43]} 21. Ne1 {[%emt 0:09:49]} Nb4 {[%emt 0:06:39]} 22. Qd2 {[%emt 0:00:00]} Bxf5 {[%emt 0:09:11]} 23. Bxf5 {[%emt 0:00:00]} Qxf5 {[%emt 0:00:24]} 24. Qxd4 {[%emt 0:00:00]} Qh3+ {[%emt 0:01:37]} 25. Kg1 {[%emt 0:00:00]} Nc2 {[%emt 0:00:44]} 26. Nxc2 {[%emt 0:00:51]} Qxg3+ {[%emt 0:00:29]} 27. Kh1 {[%emt 0:00:04]} Qh3+ {[%emt 0:00:27]} 28. Kg1 {[%emt 0:00:06]} Qg3+ {[%emt 0:01:23]} 29. Kh1 {[%emt 0:00:05]} Qh3+ {[%emt 0:06:00]} 30. Kg1 {[%emt 0:00:03]} Qg3+ {[%emt 0:00:26]} 1/2-1/2

[Event "8th Amsterdam Summer Open-A 2018"]
[Site "Amsterdam"]
[Date "2018.07.14"]
[Round "8"]
[White "Zak, Arad"]
[Black "De Jong, Tom"]
[Result "0-1"]
[ECO "E61"]
[WhiteElo "2048"]
[BlackElo "2201"]
[Annotator "NA"]
[PlyCount "70"]
[EventDate "2018.07.07"]
[EventType "swiss"]
[EventCountry "NED"]
[SourceTitle "playchess.com"]
[Source "ChessBase"]
[SourceQuality "1"]
[TimeControl "40/5400+30:1800+30"]

1. d4 {[%emt 0:01:42]} Nf6 {[%emt 0:00:00]} 2. c4 {[%emt 0:00:10]} g6 {[%emt 0:00:00]} 3. Nf3 {[%emt 0:00:16]} Bg7 {[%emt 0:00:00]} 4. Nc3 {[%emt 0:00:13]} O-O {[%emt 0:00:05]} 5. Bg5 {[%emt 0:00:19]} d6 {[%emt 0:00:34]} 6. e3 {[%emt 0:00:17] LiveBook: 1404 Partien} h6 {[%emt 0:02:40]} 7. Bh4 {[%emt 0:00:10]} c5 {[%emt 0:00:34]} 8. Be2 {[%emt 0:01:49]} g5 {[%emt 0:04:25]} 9. Bg3 {[%emt 0:00:11]} Nh5 {[%emt 0:00:55]} 10. Qd3 {[%emt 0:13:25]} (10. dxc5 $14 dxc5 11. Be5) 10... g4 {[%emt 0:19:22]} 11. Nh4 {[%emt 0:02:17]} cxd4 {[%emt 0:00:17]} 12. exd4 {[%emt 0:15:13]} Nc6 {[%emt 0:01:09]} 13. d5 $1 {[%emt 0:05:10]} Nd4 {[%emt 0:02:00]} 14. O-O {[%emt 0:07:25]} e5 $11 {[%emt 0:04:19]} 15. dxe6 {[%emt 0:04:24]} Bxe6 {[%emt 0:01:09]} 16. Nb5 {[%emt 0:07:04]} Nxe2+ {[%emt 0:10:21]} 17. Qxe2 {[%emt 0:00:17]} Rc8 {[%emt 0:00:38]} 18. Rac1 {[%emt 0:30:48]} Re8 {[%emt 0:08:57]} 19. Qd3 {[%emt 0:01:23]} Qg5 {[%emt 0:08:16]} 20. b3 {[%emt 0:04:10]} Red8 {[%emt 0:15:27]} 21. Rfd1 {[%emt 0:03:05]} a6 {[%emt 0:04:20]} 22. Nxd6 {[%emt 0:00:28]} Rc6 {[%emt 0:00:26]} 23. c5 {[%emt 0:00:36]} Nxg3 {[%emt 0:03:12]} 24. hxg3 {[%emt 0:00:30]} Rxc5 {[%emt 0:03:57]} 25. Rxc5 {[%emt 0:00:32]} Qxc5 {[%emt 0:00:02]} 26. b4 {[%emt 0:00:32]} Qxb4 {[%emt 0:00:37]} 27. Kh2 {[%emt 0:00:32]} Bf8 {[%emt 0:00:33]} 28. Qe3 {[%emt 0:00:29]} Rxd6 {[%emt 0:00:41]} 29. Re1 {[%emt 0:00:16]} Qd4 {[%emt 0:00:44]} 30. Qe2 {[%emt 0:00:22]} b5 {[%emt 0:01:46]} 31. Qc2 {[%emt 0:00:39]} Qd2 {[%emt 0:00:28]} 32. Qe4 {[%emt 0:00:12]} Qxf2 {[%emt 0:00:30]} 33. Re2 {[%emt 0:00:42]} Qd4 {[%emt 0:00:30]} 34. Qa8 {[%emt 0:00:43]} Qa1 {[%emt 0:01:47]} 35. Qa7 {[%emt 0:00:38]} Rd1 {[%emt 0:00:30]} 0-1

[Event "8th Amsterdam Summer Open-A 2018"]
[Site "Amsterdam"]
[Date "2018.07.14"]
[Round "8"]
[White "Hernandez Iglesias, Francisco"]
[Black "Mijnheer, Peter"]
[Result "1/2-1/2"]
[ECO "D36"]
[WhiteElo "2047"]
[BlackElo "2106"]
[Annotator "NA"]
[PlyCount "20"]
[EventDate "2018.07.07"]
[EventType "swiss"]
[EventCountry "NED"]
[SourceTitle "playchess.com"]
[Source "ChessBase"]
[SourceQuality "1"]
[TimeControl "40/5400+30:1800+30"]

1. d4 {[%emt 0:00:00]} d5 {[%emt 0:00:00]} 2. c4 {[%emt 0:00:00]} e6 {[%emt 0:00:00]} 3. Nc3 {[%emt 0:00:00]} Nf6 {[%emt 0:00:00]} 4. cxd5 {[%emt 0:00:00]} exd5 {[%emt 0:00:00]} 5. Bg5 {[%emt 0:00:03]} c6 {[%emt 0:00:10]} 6. e3 {[%emt 0:00:09]} Be7 {[%emt 0:01:06]} 7. Bd3 {[%emt 0:00:11]} Nbd7 {[%emt 0:00:04]} 8. Nf3 {[%emt 0:00:46]} Nf8 {[%emt 0:02:33]} 9. Qc2 {[%emt 0:01:14]} Ne6 {[%emt 0:00:28]} 10. Bh4 {[%emt 0:02:40]} g6 {[%emt 0:00:14]} 1/2-1/2

[Event "8th Amsterdam Summer Open-A 2018"]
[Site "Amsterdam"]
[Date "2018.07.14"]
[Round "8"]
[White "Pham, Khoi"]
[Black "Bosboom, Manuel"]
[Result "0-1"]
[ECO "B27"]
[WhiteElo "2037"]
[BlackElo "2403"]
[Annotator "NA"]
[PlyCount "82"]
[EventDate "2018.07.07"]
[EventType "swiss"]
[EventCountry "NED"]
[SourceTitle "playchess.com"]
[Source "ChessBase"]
[SourceQuality "1"]
[TimeControl "40/5400+30:1800+30"]

1. e4 {[%emt 0:00:00]} c5 {[%emt 0:01:03]} 2. Nf3 {[%emt 0:00:00]} a6 {[%emt 0:00:31]} 3. c3 {[%emt 0:00:00]} d5 {[%emt 0:01:07]} 4. exd5 {[%emt 0:00:13]} Nf6 {[%emt 0:00:41]} 5. d4 {[%emt 0:01:23]} cxd4 {[%emt 0:02:39]} 6. cxd4 {[%emt 0:03:05]} g6 {[%emt 0:01:14]} 7. Nc3 {[%emt 0:01:10]} Bg7 {[%emt 0:01:03]} 8. Bc4 {[%emt 0:04:33] LiveBook: 3 Games B27: Sicilian: 2 Nf3, unusual Black 2nd moves} O-O {[%emt 0:03:39]} 9. O-O {[%emt 0:00:43]} b5 {[%emt 0:00:30]} 10. Bb3 {[%emt 0:01:02]} Bb7 {[%emt 0:00:14]} 11. Re1 {[%emt 0:03:44]} b4 {[%emt 0:05:56]} 12. Na4 {[%emt 0:03:25]} Bxd5 {[%emt 0:02:06]} 13. Bf4 $146 {[%emt 0:04:55]} ({Predecessor:} 13. Bg5 Bxb3 14. Qxb3 Nc6 15. Rad1 Qd5 {1-0 (35) Ismagambetov,A (2492)-Kuderinov,K (2481) Maralsay 2010}) 13... Nc6 {[%emt 0:01:55]} 14. Rc1 {[%emt 0:03:04]} Bxf3 {[%emt 0:08:41]} 15. Qxf3 {[%emt 0:01:46]} Nxd4 {[%emt 0:00:56]} 16. Qb7 {[%emt 0:00:23]} Nxb3 {[%emt 0:08:09]} 17. axb3 {[%emt 0:02:46]} Nd5 {[%emt 0:02:39]} 18. Bg3 {[%emt 0:04:56]} (18. Bg5 $1 $15 Rb8 19. Qxa6) 18... e6 {[%emt 0:00:39]} 19. Rc6 {[%emt 0:03:42]} a5 {[%emt 0:09:03]} 20. Rec1 {[%emt 0:03:19]} h5 {[%emt 0:01:24]} 21. h3 {[%emt 0:01:50]} h4 {[%emt 0:02:44]} 22. Bd6 {[%emt 0:01:25]} Re8 {[%emt 0:00:46]} 23. R1c4 {[%emt 0:07:45]} Qg5 {[%emt 0:02:00]} 24. Rg4 {[%emt 0:02:01]} Qd2 {[%emt 0:01:07]} 25. Nc5 {[%emt 0:09:37]} Rad8 {[%emt 0:04:01]} 26. Ne4 {[%emt 0:03:01]} Qe1+ {[%emt 0:01:31]} 27. Kh2 {[%emt 0:00:05] [#]} Nf6 $15 {[%emt 0:01:41]} (27... Rxd6 $1 $19 {[%mdl 512]} 28. Nxd6 (28. Rxd6 Be5+) 28... Be5+ 29. f4 Bxd6) 28. Nxf6+ {[%emt 0:06:30]} Bxf6 {[%emt 0:00:02]} 29. Rf4 {[%emt 0:02:12]} Rxd6 {[%emt 0:14:30]} 30. Rxd6 {[%emt 0:06:10]} Qe5 {[%emt 0:01:07]} 31. Rdd4 {[%emt 0:04:12]} Rb8 {[%emt 0:04:30]} 32. Qa7 {[%emt 0:04:04]} Rc8 {[%emt 0:00:55]} 33. Rde4 {[%emt 0:01:15]} Qxb2 {[%emt 0:02:04]} 34. Qb7 {[%emt 0:05:24]} Rf8 {[%emt 0:03:22]} 35. Rg4 {[%emt 0:01:18]} Qxb3 {[%emt 0:01:09]} 36. Qa7 {[%emt 0:02:39]} Qd5 {[%emt 0:01:57]} 37. Qe3 {[%emt 0:01:12]} b3 {[%emt 0:02:41]} 38. Qe1 {[%emt 0:03:11]} b2 {[%emt 0:00:54]} 39. Qb1 {[%emt 0:00:34]} Kg7 {[%emt 0:04:09]} 40. Re2 {[%emt 0:00:30]} Rc8 {[%emt 0:00:26]} 41. Rxb2 {[%emt 0:01:08]} Qe5+ {[%emt 0:00:00]} 0-1

[Event "8th Amsterdam Summer Open-A 2018"]
[Site "Amsterdam"]
[Date "2018.07.14"]
[Round "8"]
[White "Romkes, Abel"]
[Black "Vroombout, Enrico"]
[Result "1/2-1/2"]
[ECO "C06"]
[WhiteElo "2018"]
[BlackElo "2132"]
[Annotator "NA"]
[PlyCount "77"]
[EventDate "2018.07.07"]
[EventType "swiss"]
[EventCountry "NED"]
[SourceTitle "playchess.com"]
[Source "ChessBase"]
[SourceQuality "1"]
[TimeControl "40/5400+30:1800+30"]

1. e4 {[%emt 0:00:00]} e6 {[%emt 0:00:00]} 2. d4 {[%emt 0:00:00]} d5 {[%emt 0:00:00]} 3. Nd2 {[%emt 0:00:00]} Nf6 {[%emt 0:00:14]} 4. e5 {[%emt 0:00:00]} Nfd7 {[%emt 0:00:03]} 5. Bd3 {[%emt 0:00:11]} c5 {[%emt 0:00:04]} 6. c3 {[%emt 0:00:06]} Nc6 {[%emt 0:00:06]} 7. Ne2 {[%emt 0:00:15]} cxd4 {[%emt 0:00:09]} 8. cxd4 {[%emt 0:00:06]} f6 {[%emt 0:00:03]} 9. exf6 {[%emt 0:00:17]} Nxf6 {[%emt 0:00:04]} 10. O-O {[%emt 0:00:22]} Bd6 {[%emt 0:00:06]} 11. Nf3 {[%emt 0:00:10]} O-O {[%emt 0:00:13]} 12. Bf4 {[%emt 0:00:47]} Nh5 {[%emt 0:00:13]} 13. Bxd6 {[%emt 0:04:59]} Qxd6 {[%emt 0:00:05]} 14. Qc2 {[%emt 0:02:34]} Nf6 {[%emt 0:04:47]} 15. a3 {[%emt 0:08:00]} Bd7 {[%emt 0:02:46]} 16. h3 {[%emt 0:18:59]} Rac8 {[%emt 0:00:15]} 17. Qd2 {[%emt 0:00:16]} a6 {[%emt 0:13:52]} 18. Rfe1 $14 {[%emt 0:11:36]} Nh5 {[%emt 0:29:07]} 19. Qe3 {[%emt 0:07:20]} Nf4 {[%emt 0:20:07]} 20. Nxf4 {[%emt 0:01:18]} Rxf4 {[%emt 0:01:25]} 21. g3 {[%emt 0:12:02]} Rff8 {[%emt 0:09:16]} 22. Rac1 {[%emt 0:07:05]} h6 {[%emt 0:03:34]} 23. Bb1 {[%emt 0:01:35]} Qe7 {[%emt 0:02:06]} 24. Qd3 {[%emt 0:04:59]} g5 {[%emt 0:01:23]} 25. Rcd1 {[%emt 0:02:10]} Qg7 {[%emt 0:01:01]} 26. Kg2 {[%emt 0:07:50]} Rf6 {[%emt 0:01:53]} 27. Ne5 {[%emt 0:02:01]} Rcf8 {[%emt 0:02:22]} 28. Rd2 {[%emt 0:00:50]} Nxe5 {[%emt 0:01:29]} 29. Rxe5 {[%emt 0:00:15]} Qf7 {[%emt 0:02:48]} 30. Qe3 {[%emt 0:02:16]} Rf3 {[%emt 0:00:24]} 31. Qe1 {[%emt 0:00:21]} Qf6 {[%emt 0:01:25]} 32. Bc2 {[%emt 0:00:55]} Qg7 {[%emt 0:00:43]} 33. Bd1 {[%emt 0:00:19]} R3f6 {[%emt 0:00:04]} 34. Bg4 {[%emt 0:00:31]} Qf7 {[%emt 0:00:56]} 35. Rde2 {[%emt 0:02:34]} Re8 {[%emt 0:00:16]} 36. R2e3 {[%emt 0:00:49]} Rf8 {[%emt 0:00:13]} 37. Re2 {[%emt 0:00:34]} Re8 {[%emt 0:00:18]} 38. R2e3 {[%emt 0:01:23]} Rf8 {[%emt 0:00:11]} 39. Re2 {[%emt 0:00:07]} 1/2-1/2

[Event "8th Amsterdam Summer Open-A 2018"]
[Site "Amsterdam"]
[Date "2018.07.15"]
[Round "9"]
[White "Kokje, Joris"]
[Black "Kohler, Aran"]
[Result "1/2-1/2"]
[ECO "E11"]
[WhiteElo "2242"]
[BlackElo "2175"]
[Annotator "NA"]
[PlyCount "51"]
[EventDate "2018.07.07"]
[EventType "swiss"]
[EventCountry "NED"]
[SourceTitle "playchess.com"]
[Source "ChessBase"]
[SourceQuality "1"]
[TimeControl "40/5400+30:1800+30"]

1. d4 {[%emt 0:00:00]} Nf6 {[%emt 0:00:00]} 2. c4 {[%emt 0:00:00]} Nc6 {[%emt 0:00:00]} 3. Nf3 {[%emt 0:04:02]} e6 {[%emt 0:01:25]} 4. g3 {[%emt 0:00:54]} Bb4+ {[%emt 0:00:14]} 5. Bd2 {[%emt 0:00:45]} Qe7 {[%emt 0:00:10]} 6. Bg2 {[%emt 0:02:07]} Ne4 {[%emt 0:03:58]} 7. O-O {[%emt 0:01:53]} Bxd2 {[%emt 0:00:26] E11: Bogo-Indian} (7... Nxd2 8. Nbxd2 O-O 9. Nb3 b6 10. Rc1 Rb8 11. a3 Bd6 12. e4 Qd8 13. e5 Be7 14. d5 Na5 15. Nbd2 {½-½ (54) Danielian,E (2484)-Melia,S (2410) Batumi 2012}) 8. Nbxd2 {[%emt 0:01:02]} Nxd2 {[%emt 0:02:08]} 9. Qxd2 {[%emt 0:00:36]} d6 {[%emt 0:00:12]} 10. b4 {[%emt 0:02:58]} e5 {[%emt 0:01:49]} 11. d5 {[%emt 0:01:23]} Nb8 {[%emt 0:03:05]} 12. Rfc1 $146 {[%emt 0:07:08]} ({Predecessor:} 12. e4 Bg4 13. Ne1 Nd7 14. Nd3 g5 15. c5 {1-0 (37) Wurm,A (2156)-Antoniacci,R (1897) Arco 2017}) 12... a5 {[%emt 0:05:48]} 13. a3 {[%emt 0:03:33]} axb4 {[%emt 0:00:30]} 14. axb4 {[%emt 0:00:16]} Rxa1 {[%emt 0:00:05]} 15. Rxa1 {[%emt 0:00:11]} O-O {[%emt 0:00:14]} 16. Ra7 {[%emt 0:06:09]} h6 {[%emt 0:03:08]} 17. Qc3 {[%emt 0:02:02]} c6 {[%emt 0:09:47]} 18. Nd2 {[%emt 0:06:06]} Qc7 {[%emt 0:00:19]} 19. dxc6 {[%emt 0:09:39]} Nxc6 {[%emt 0:00:22]} 20. Ra2 {[%emt 0:02:18]} Be6 {[%emt 0:04:00]} 21. e3 {[%emt 0:04:49]} Rc8 {[%emt 0:04:26]} 22. Qa3 {[%emt 0:06:58]} Ne7 {[%emt 0:01:24]} (22... b5 $5 23. Bd5 bxc4 24. Bxe6 fxe6 25. Nxc4 Nxb4 26. Qxb4 Qxc4 27. Qxc4 Rxc4 $15) 23. Rc2 {[%emt 0:02:50]} b5 {[%emt 0:05:21]} 24. c5 {[%emt 0:00:16]} dxc5 {[%emt 0:03:04]} 25. Rxc5 {[%emt 0:03:17]} Qd7 {[%emt 0:01:00]} 26. Rxc8+ $11 {[%emt 0:02:22]} 1/2-1/2

[Event "8th Amsterdam Summer Open-A 2018"]
[Site "Amsterdam"]
[Date "2018.07.15"]
[Round "9"]
[White "De Jong, Tom"]
[Black "Frans, Richard"]
[Result "1-0"]
[ECO "A08"]
[WhiteElo "2201"]
[BlackElo "2001"]
[Annotator "NA"]
[PlyCount "75"]
[EventDate "2018.07.07"]
[EventType "swiss"]
[EventCountry "NED"]
[SourceTitle "playchess.com"]
[Source "ChessBase"]
[SourceQuality "1"]
[TimeControl "40/5400+30:1800+30"]

1. e4 {[%emt 0:00:00]} e6 {[%emt 0:00:00]} 2. d3 {[%emt 0:00:00]} d5 {[%emt 0:00:02]} 3. Nd2 {[%emt 0:00:00]} c5 {[%emt 0:00:45]} 4. Ngf3 {[%emt 0:00:10]} Nc6 {[%emt 0:00:42]} 5. g3 {[%emt 0:00:35]} Bd6 {[%emt 0:00:24]} 6. Bg2 {[%emt 0:00:10]} Nge7 {[%emt 0:00:47]} 7. O-O {[%emt 0:00:09]} O-O {[%emt 0:00:55]} 8. Re1 {[%emt 0:05:50]} Qc7 {[%emt 0:01:31]} 9. c3 {[%emt 0:01:42]} Bd7 {[%emt 0:38:36]} 10. a3 {[%emt 0:06:36]} d4 {[%emt 0:10:43]} 11. cxd4 {[%emt 0:01:11]} cxd4 {[%emt 0:00:04]} 12. Nc4 {[%emt 0:01:43]} e5 {[%emt 0:01:13]} 13. Nh4 {[%emt 0:04:56]} b5 {[%emt 0:06:09]} 14. Nxd6 {[%emt 0:00:34]} Qxd6 {[%emt 0:00:02]} 15. f4 {[%emt 0:00:41]} f6 {[%emt 0:01:54]} 16. Bd2 {[%emt 0:06:05]} a5 {[%emt 0:03:28]} 17. Rc1 {[%emt 0:02:38]} Be6 {[%emt 0:05:09]} 18. Qc2 {[%emt 0:17:40]} Rac8 {[%emt 0:05:32]} 19. Qc5 {[%emt 0:01:07]} Qb8 {[%emt 0:11:48]} 20. fxe5 {[%emt 0:14:02]} fxe5 {[%emt 0:01:05]} 21. Nf5 {[%emt 0:01:45]} Nxf5 {[%emt 0:01:48]} 22. exf5 {[%emt 0:00:12]} Nb4 {[%emt 0:01:37]} 23. Qe7 {[%emt 0:17:57]} Rfe8 {[%emt 0:00:42]} 24. Qg5 {[%emt 0:03:00]} Rxc1 {[%emt 0:03:08]} 25. Rxc1 {[%emt 0:01:04]} Nxd3 {[%emt 0:00:13]} 26. fxe6 {[%emt 0:03:48]} Nxc1 {[%emt 0:00:07]} 27. Bxc1 {[%emt 0:00:12]} Qd6 {[%emt 0:00:21]} 28. Bh3 {[%emt 0:02:11]} d3 {[%emt 0:02:04]} 29. Bd2 {[%emt 0:02:12]} Qd4+ {[%emt 0:01:07]} 30. Qe3 {[%emt 0:01:41]} Qd5 {[%emt 0:02:01]} 31. Bxa5 {[%emt 0:01:26]} e4 {[%emt 0:00:26]} 32. Bc3 {[%emt 0:01:27]} Qh5 {[%emt 0:00:37]} 33. Qa7 {[%emt 0:00:54]} Qg6 {[%emt 0:00:46]} 34. Bf5 {[%emt 0:01:26]} d2 {[%emt 0:00:10]} 35. Bxg6 {[%emt 0:00:43]} d1=Q+ {[%emt 0:00:06]} 36. Kg2 {[%emt 0:00:14]} Qf3+ {[%emt 0:01:04]} 37. Kh3 {[%emt 0:00:26]} Qf1+ {[%emt 0:00:46]} 38. Kh4 {[%emt 0:00:15]} 1-0